fUST/lending_fUST_20251119
["ID","MTS","AMOUNT","RATE_DAILY","PERIOD"]
[394420686,1763555833438,160.93502787,0.00012993,2]
[394420687,1763555841415,160.93502787,0.00012993,2]
[394420688,1763555856545,160.93502787,0.00012993,2]
[394420689,1763555861294,951.98892952,0.00015793,7]
[394420690,1763555864931,160.93502787,0.00012993,2]
[394420691,1763555880179,160.93502787,0.00012993,2]
[394420692,1763555888057,160.93502787,0.00012993,2]
[394420693,1763555896018,-160.93502787,0.00013124,2]
[394420694,1763555896040,-185.58725956,0.00013137,2]
[394420695,1763555896062,-153.16595696,0.00013149,2]
[394420696,1763555903463,1040.1207093,0.00013018,2]
[394420697,1763555911316,1646.83404304,0.00013018,2]
[394420698,1763555919911,499.68824439,0.00013018,2]
[394420699,1763555936142,1646.83404304,0.00013018,2]
[394420700,1763555940866,5166.53296023,0.00013123,2]
[394420701,1763555940887,4716.5904819,0.00013123,2]
[394420702,1763555952272,311.67278258,0.00013049,2]
[394420703,1763555958569,1646.83404304,0.00013018,2]
[394420704,1763555966385,1646.83404304,0.00013018,2]
[394420705,1763555981328,1646.83404304,0.00013018,2]
[394420706,1763555989113,1646.83404304,0.00013018,2]
[394420707,1763556004135,163.44132153,0.00013019,2]
[394420708,1763556012256,163.44132153,0.00013019,2]
[394420709,1763556027483,163.44132153,0.00013019,2]
[394420711,1763556035297,163.44132153,0.00013019,2]
[394420712,1763556051687,163.44132153,0.00013019,2]
[394420713,1763556059561,163.44132153,0.00013019,2]
[394420715,1763556074765,163.44132153,0.00013019,2]
[394420730,1763556083151,163.44132153,0.00013019,2]
[394420731,1763556098384,163.44132153,0.00013019,2]
[394420732,1763556103087,314.881,0.00012957,2]
[394420733,1763556106171,163.44132153,0.00013019,2]
[394420734,1763556109827,-163.44132153,0.0001315,2]
[394420735,1763556124923,-151.0,0.000132,2]
[394420736,1763556128392,151.0,0.00013068,2]
[394420737,1763556136531,300.0,0.00013089,2]
[394420738,1763556140330,-300.0,0.00013221,2]
[394420739,1763556151930,500.0,0.00013221,2]
[394420740,1763556152018,500.0,0.00013221,2]
[394420741,1763556152199,288.54494126,0.00013221,2]
[394420742,1763556152582,241.17829925,0.00013221,2]
[394420743,1763556154142,7870.28675949,0.0001309,2]
[394420744,1763556154166,10000.01,0.0001309,2]
[394420745,1763556154189,10000.01,0.0001309,2]
[394420746,1763556154213,10000.01,0.0001309,2]
[394420747,1763556154237,10000.01,0.0001309,2]
[394420748,1763556154261,1723.93166979,0.0001309,2]
[394420749,1763556154411,500.0,0.00013221,2]
[394420750,1763556154443,500.0,0.00013221,2]
[394420751,1763556154482,500.0,0.00013221,2]
[394420752,1763556154516,500.0,0.00013221,2]
[394420753,1763556154551,500.0,0.00013221,2]
[394420754,1763556154586,500.0,0.00013221,2]
[394420755,1763556154616,500.0,0.00013221,2]
[394420756,1763556154649,500.0,0.00013221,2]
[394420757,1763556154684,500.0,0.00013221,2]
[394420758,1763556154718,500.0,0.00013221,2]
[394420759,1763556154749,500.0,0.00013221,2]
[394420760,1763556154780,500.0,0.00013221,2]
[394420761,1763556154811,500.0,0.00013221,2]
[394420762,1763556154936,500.0,0.00013221,2]
[394420763,1763556154982,500.0,0.00013221,2]
[394420764,1763556155010,500.0,0.00013221,2]
[394420765,1763556155042,276.07833021,0.00013221,2]
[394420766,1763556155066,223.92166979,0.00013221,2]
[394420767,1763556155143,500.0,0.00013221,2]
[394420768,1763556155178,500.0,0.00013221,2]
[394420769,1763556155211,500.0,0.00013221,2]
[394420770,1763556155245,500.00000008,0.00013221,2]
[394420771,1763556155278,500.0,0.00013221,2]
[394420772,1763556155321,500.0,0.00013221,2]
[394420773,1763556155370,500.0,0.00013221,2]
[394420774,1763556155404,500.0,0.00013221,2]
[394420775,1763556155449,500.0,0.00013221,2]
[394420776,1763556155478,521.503642,0.00013221,2]
[394420777,1763556155516,500.0,0.00013221,2]
[394420778,1763556155545,500.0,0.00013221,2]
[394420779,1763556155579,500.0,0.00013221,2]
[394420780,1763556155620,500.0,0.00013221,2]
[394420781,1763556155652,500.0,0.00013221,2]
[394420782,1763556155693,500.0,0.00013221,2]
[394420783,1763556155725,500.0,0.00013221,2]
[394420784,1763556155754,500.0,0.00013221,2]
[394420785,1763556155791,500.0,0.00013221,2]
[394420786,1763556155827,254.58468813,0.00013221,2]
[394420787,1763556155851,245.41531187,0.00013221,2]
[394420788,1763556155888,500.0,0.00013221,2]
[394420789,1763556155926,500.0,0.00013221,2]
[394420790,1763556155964,500.0,0.00013221,2]
[394420791,1763556155998,500.0,0.00013221,2]
[394420792,1763556156031,500.0,0.00013221,2]
[394420793,1763556156061,500.0,0.00013221,2]
[394420794,1763556156101,500.0,0.00013221,2]
[394420795,1763556156131,500.0,0.00013221,2]
[394420796,1763556156162,500.0,0.00013221,2]
[394420797,1763556156204,500.0,0.00013221,2]
[394420798,1763556156233,606.52128435,0.00013221,2]
[394420799,1763556156273,500.0,0.00013221,2]
[394420800,1763556156304,500.0,0.00013221,2]
[394420801,1763556156335,500.0,0.00013221,2]
[394420802,1763556156373,500.0,0.00013221,2]
[394420803,1763556156403,500.0,0.00013221,2]
[394420804,1763556156434,500.0,0.00013221,2]
[394420805,1763556156476,500.0,0.00013221,2]
[394420806,1763556156517,500.0,0.00013221,2]
[394420807,1763556156547,148.07340378,0.00013221,2]
[394420808,1763556156658,351.92659622,0.00013221,2]
[394420809,1763556156701,500.0,0.00013221,2]
[394420810,1763556156742,500.0,0.00013221,2]
[394420811,1763556156785,500.0,0.00013221,2]
[394420812,1763556156815,500.0,0.00013221,2]
[394420813,1763556156844,500.0,0.00013221,2]
[394420814,1763556156885,500.0,0.00013221,2]
[394420815,1763556156927,500.0,0.00013221,2]
[394420816,1763556156974,441.77006521,0.00013221,2]
[394420817,1763556157006,500.0,0.00013221,2]
[394420818,1763556157039,500.0,0.00013221,2]
[394420819,1763556157073,500.0,0.00013221,2]
[394420820,1763556157112,500.0,0.00013221,2]
[394420821,1763556157144,500.0,0.00013221,2]
[394420822,1763556157178,500.0,0.00013221,2]
[394420823,1763556157216,500.0,0.00013221,2]
[394420824,1763556157246,500.0,0.00013221,2]
[394420825,1763556157300,500.0,0.00013221,2]
[394420826,1763556157330,500.0,0.00013221,2]
[394420827,1763556157362,500.0,0.00013221,2]
[394420828,1763556157398,206.31333857,0.00013221,2]
[394420829,1763556158256,-293.68666143,0.00013221,2]
[394420830,1763556158291,-500.0,0.00013221,2]
[394420831,1763556158324,-500.0,0.00013221,2]
[394420832,1763556158359,-500.0,0.00013221,2]
[394420833,1763556158399,-500.0,0.00013221,2]
[394420834,1763556158434,-500.0,0.00013221,2]
[394420835,1763556158471,-500.0,0.00013221,2]
[394420836,1763556158505,-500.0,0.00013221,2]
[394420837,1763556158540,-500.0,0.00013221,2]
[394420838,1763556158575,-500.0,0.00013221,2]
[394420839,1763556158679,-500.0,0.00013221,2]
[394420840,1763556158711,-500.0,0.00013221,2]
[394420841,1763556158741,-500.0,0.00013221,2]
[394420842,1763556158771,-500.0,0.00013221,2]
[394420843,1763556158802,-500.0,0.00013221,2]
[394420844,1763556158838,-500.0,0.00013221,2]
[394420845,1763556158871,-500.0,0.00013221,2]
[394420846,1763556158903,-500.0,0.00013221,2]
[394420847,1763556158936,-500.0,0.00013221,2]
[394420848,1763556158969,-500.0,0.00013221,2]
[394420849,1763556159012,-500.0,0.00013221,2]
[394420850,1763556159045,-500.0,0.00013221,2]
[394420851,1763556159075,-500.0,0.00013221,2]
[394420852,1763556159107,-500.0,0.00013221,2]
[394420853,1763556159136,-500.0,0.00013221,2]
[394420854,1763556159165,-500.0,0.00013221,2]
[394420855,1763556159197,-500.0,0.00013221,2]
[394420856,1763556159227,-500.0,0.00013221,2]
[394420857,1763556159255,-500.0,0.00013221,2]
[394420858,1763556159287,-500.0,0.00013221,2]
[394420859,1763556159363,-500.0,0.00013221,2]
[394420860,1763556159395,-500.0,0.00013221,2]
[394420861,1763556159425,-500.0,0.00013221,2]
[394420862,1763556159454,-500.0,0.00013221,2]
[394420863,1763556159484,-500.0,0.00013221,2]
[394420864,1763556159512,-500.0,0.00013221,2]
[394420865,1763556159543,-500.0,0.00013221,2]
[394420866,1763556159572,-500.0,0.00013221,2]
[394420867,1763556159604,-500.0,0.00013221,2]
[394420868,1763556159636,-500.0,0.00013221,2]
[394420869,1763556160524,-500.0,0.00013221,2]
[394420870,1763556160565,-500.0,0.00013221,2]
[394420871,1763556160605,-500.0,0.00013221,2]
[394420872,1763556160642,-500.0,0.00013221,2]
[394420873,1763556160680,-540.89180092,0.00013221,2]
[394420874,1763556160717,-500.0,0.00013221,2]
[394420875,1763556160754,-500.0,0.00013221,2]
[394420876,1763556160797,-500.0,0.00013221,2]
[394420877,1763556160829,-500.0,0.00013221,2]
[394420878,1763556160870,-418.22639816,0.00013221,2]
[394420879,1763556161092,-81.77360184,0.00013221,2]
[394420880,1763556161128,-500.0,0.00013221,2]
[394420881,1763556161165,-500.0,0.00013221,2]
[394420882,1763556161200,-500.0,0.00013221,2]
[394420883,1763556161234,-500.0,0.00013221,2]
[394420884,1763556161269,-500.0,0.00013221,2]
[394420885,1763556161297,-500.0,0.00013221,2]
[394420886,1763556161327,-500.0,0.00013221,2]
[394420887,1763556161499,-500.0,0.00013221,2]
[394420888,1763556161532,-500.0,0.00013221,2]
[394420889,1763556161562,-336.46279632,0.00013221,2]
[394420890,1763556161728,-163.53720368,0.00013221,2]
[394420891,1763556161759,-500.0,0.00013221,2]
[394420892,1763556161792,-500.0,0.00013221,2]
[394420893,1763556161824,-500.0,0.00013221,2]
[394420894,1763556161857,-500.0,0.00013221,2]
[394420895,1763556161891,-500.0,0.00013221,2]
[394420896,1763556161925,-500.0,0.00013221,2]
[394420897,1763556162655,3672.93559264,0.00013089,2]
[394420898,1763556163789,-632.05379172,0.00013089,2]
[394420899,1763556163830,-1264.10758344,0.00013089,2]
[394420900,1763556163876,-2528.21516688,0.00013089,2]
[394420901,1763556163913,-4943.57966624,0.00013089,2]
[394420902,1763556164500,112.85066752,0.00013221,2]
[394420903,1763556164521,10000.01,0.00013221,2]
[394420904,1763556164617,10000.01,0.00013221,2]
[394420905,1763556164659,10000.01,0.00013221,2]
[394420906,1763556168868,-1200.0,0.0001322,2]
[394420907,1763556169112,-4709.11359138,0.00013221,2]
[394420908,1763556169206,-10000.01,0.00013221,2]
[394420909,1763556169330,-4822.0142589,0.00013221,2]
[394420910,1763556169352,-355.9814822,0.00013221,2]
[394420911,1763556181186,-561.41011861,0.0001309,2]
[394420912,1763556184826,-462.61580351,0.0001309,2]
[394420913,1763556186796,-153.01727088,0.00012959,2]
[394420914,1763556189466,-373.65466446,0.00012959,2]
[394420915,1763556192652,-458.89703224,0.00012959,2]
[394420916,1763556197369,-343.32724107,0.00012829,2]
[394420917,1763556197391,-121.42583547,0.00012959,2]
[394420918,1763556198909,-161.12821346,0.00012959,2]
[394420919,1763556203122,-307.70470909,0.00012959,2]
[394420920,1763556205035,-153.01727088,0.00012959,2]
[394420921,1763556226063,-625.88129,0.00012829,2]
[394420923,1763556297581,2467.46625938,0.00032877,120]
[394420924,1763556405137,-346.29591201,0.00012829,2]
[394420925,1763556405156,-185.41162436,0.00013025,2]
[394420926,1763556405176,-1200.0,0.00013119,2]
[394420927,1763556405194,-300.0,0.0001312,2]
[394420928,1763556405214,-300.0,0.0001312,2]
[394420929,1763556405233,-300.0,0.0001312,2]
[394420930,1763556405252,-1907.60895413,0.00013196,2]
[394420931,1763556405271,-500.0,0.00013199,2]
[394420932,1763556405288,-456.28014271,0.00013199,2]
[394420933,1763556405308,-500.0,0.00013199,2]
[394420934,1763556405330,-1429.84967831,0.00013199,2]
[394420935,1763556405347,-224.61151578,0.00013199,2]
[394420936,1763556405367,-444.17700652,0.00013199,2]
[394420937,1763556405386,-500.0,0.00013199,2]
[394420938,1763556405405,-500.0,0.00013199,2]
[394420939,1763556405428,-1429.84967831,0.00013199,2]
[394420940,1763556405448,-500.0,0.00013199,2]
[394420941,1763556405467,-500.0,0.00013199,2]
[394420942,1763556405492,-326.13257121,0.00013199,2]
[394420946,1763556466024,-200.97609246,0.00012719,2]
[394420947,1763556466047,-172.48931111,0.00012719,2]
[394420948,1763556466791,213.74179896,0.00015794,7]
[394420949,1763556469081,854.96719583,0.00015861,7]
[394420950,1763556482062,396.66,5e-05,2]
[394420951,1763556482389,396.66,5.1e-05,2]
[394420952,1763556482701,396.66,5.3e-05,2]
[394420953,1763556483013,396.66,5.4e-05,2]
[394420954,1763556483479,396.66,5.6e-05,2]
[394420955,1763556483776,396.66,5.7e-05,2]
[394420956,1763556484110,396.66,5.9e-05,2]
[394420957,1763556484440,396.66,6e-05,2]
[394420958,1763556484748,396.66,6.1e-05,2]
[394420959,1763556485064,396.66,6.3e-05,2]
[394420960,1763556485461,396.66,6.4e-05,2]
[394420961,1763556485778,396.66,6.6e-05,2]
[394420962,1763556486379,396.66,6.7e-05,2]
[394420963,1763556486476,396.66,6.9e-05,2]
[394420964,1763556486776,396.66,7e-05,2]
[394420965,1763556487226,396.66,7.1e-05,2]
[394420966,1763556487517,396.66,7.3e-05,2]
[394420967,1763556487837,396.66,7.4e-05,2]
[394420968,1763556488301,396.66,7.6e-05,2]
[394420969,1763556488620,396.66,7.7e-05,2]
[394420970,1763556488935,396.66,7.9e-05,2]
[394420971,1763556489352,396.66,8e-05,2]
[394420972,1763556489753,396.66,8.1e-05,2]
[394420973,1763556490151,396.66,8.3e-05,2]
[394420974,1763556490480,396.66,8.4e-05,2]
[394420975,1763556490777,396.66,8.6e-05,2]
[394420976,1763556491076,396.66,8.7e-05,2]
[394420977,1763556491375,396.66,8.9e-05,2]
[394420978,1763556491666,396.66,9e-05,2]
[394420979,1763556491976,396.66,9.1e-05,2]
[394420980,1763556492258,396.66,9.3e-05,2]
[394420981,1763556492663,396.66,9.4e-05,2]
[394420982,1763556492858,396.66,9.6e-05,2]
[394420983,1763556493229,396.66,9.7e-05,2]
[394420984,1763556493528,396.66,9.9e-05,2]
[394420985,1763556493820,396.66,0.0001,2]
[394420986,1763556494113,396.66,0.000101,2]
[394420987,1763556494469,396.66,0.000103,2]
[394420988,1763556494825,396.66,0.000104,2]
[394420989,1763556495443,396.66,0.000106,2]
[394420990,1763556495748,396.66,0.000107,2]
[394420991,1763556496063,396.66,0.000109,2]
[394420992,1763556496475,396.66,0.00011,2]
[394420993,1763556496671,396.66,0.000111,2]
[394420994,1763556497034,396.66,0.000113,2]
[394420995,1763556497368,396.66,0.000114,2]
[394420996,1763556497685,396.66,0.000116,2]
[394420997,1763556498049,396.66,0.000117,2]
[394420998,1763556498366,396.66,0.000119,2]
[394420999,1763556498678,396.66,0.00012,2]
[394421000,1763556523993,216.1187004,0.00012179,2]
[394421001,1763556543496,202.2,5e-05,2]
[394421002,1763556543566,202.2,0.00012,2]
[394421003,1763556570412,3043.12816823,0.00012466,2]
[394421004,1763556592610,3043.12816823,0.00012466,2]
[394421005,1763556601061,300.0,0.00012466,2]
[394421006,1763556616515,3043.12816823,0.00012466,2]
[394421053,1763556632619,-643.77140468,0.00012592,2]
[394421054,1763556633044,-2399.35676355,0.00012592,2]
[394421055,1763556633054,-3043.12816823,0.00012719,2]
[394421056,1763556633064,-181.70339187,0.00012909,2]
[394421057,1763556633073,-1097.95182208,0.00013098,2]
[394421058,1763556633084,-102.04817792,0.00013098,2]
[394421059,1763556633093,-300.0,0.00013098,2]
[394421060,1763556633103,-300.0,0.00013098,2]
[394421061,1763556633112,-1200.0,0.00013098,2]
[394421062,1763556633121,-300.0,0.00013098,2]
[394421063,1763556633130,-201.98145888,0.00013197,2]
[394421064,1763556633139,-500.0,0.00013197,2]
[394421065,1763556633148,-368.82480947,0.00013197,2]
[394421066,1763556633157,-155.255002,0.00013198,2]
[394421067,1763556633167,-500.0,0.00013198,2]
[394421068,1763556633176,-500.0,0.00013198,2]
[394421069,1763556633186,-500.0,0.00013198,2]
[394421070,1763556633195,-500.0,0.00013198,2]
[394421071,1763556633203,-500.0,0.00013198,2]
[394421072,1763556633213,-500.0,0.00013198,2]
[394421073,1763556633221,-624.3907193,0.00013198,2]
[394421074,1763556633230,-624.3907193,0.00013198,2]
[394421075,1763556633239,-11942.98569863,0.00013198,2]
[394421076,1763556633248,-11942.98569863,0.00013198,2]
[394421077,1763556633257,-11942.98569863,0.00013198,2]
[394421078,1763556633266,-11942.98569863,0.00013198,2]
[394421079,1763556633275,-11942.98569863,0.00013198,2]
[394421080,1763556633284,-11942.98569863,0.00013198,2]
[394421081,1763556633293,-11942.98569863,0.00013198,2]
[394421082,1763556633303,-11942.98569863,0.00013198,2]
[394421083,1763556633313,-11942.98569863,0.00013198,2]
[394421084,1763556633322,-11942.98569863,0.00013198,2]
[394421085,1763556633331,-11942.98569863,0.00013198,2]
[394421086,1763556633341,-11942.98569863,0.00013198,2]
[394421087,1763556633351,-11942.98569863,0.00013198,2]
[394421088,1763556633360,-11942.98569863,0.00013198,2]
[394421089,1763556633369,-11942.98569863,0.00013198,2]
[394421090,1763556633379,-11942.98569863,0.00013198,2]
[394421091,1763556633388,-1235.33793505,0.00013198,2]
[394421092,1763556633409,-912.404044,0.00013198,2]
[394421102,1763556638288,-500.0,0.00013197,2]
[394421104,1763556638297,-500.0,0.00013197,2]
[394421106,1763556638306,-500.0,0.00013197,2]
[394421108,1763556638315,-500.0,0.00013197,2]
[394421110,1763556638324,-500.0,0.00013197,2]
[394421112,1763556638333,-271.57522295,0.00013197,2]
[394421113,1763556638342,-500.0,0.00013197,2]
[394421114,1763556638352,-500.0,0.00013197,2]
[394421115,1763556638360,-500.0,0.00013197,2]
[394421116,1763556638369,-500.0,0.00013197,2]
[394421117,1763556638378,-500.0,0.00013197,2]
[394421118,1763556638387,-500.0,0.00013197,2]
[394421119,1763556638396,-500.0,0.00013197,2]
[394421120,1763556638405,-500.0,0.00013197,2]
[394421121,1763556638414,-500.0,0.00013197,2]
[394421122,1763556638424,-500.0,0.00013197,2]
[394421123,1763556638434,-500.0,0.00013197,2]
[394421124,1763556638443,-500.0,0.00013197,2]
[394421125,1763556638452,-500.0,0.00013197,2]
[394421126,1763556638461,-500.0,0.00013197,2]
[394421127,1763556638470,-250.0,0.00013197,2]
[394421128,1763556638479,-500.0,0.00013197,2]
[394421129,1763556638488,-500.0,0.00013197,2]
[394421130,1763556638497,-500.0,0.00013197,2]
[394421131,1763556638506,-500.0,0.00013197,2]
[394421132,1763556638516,-500.0,0.00013197,2]
[394421133,1763556638525,-500.0,0.00013197,2]
[394421134,1763556638534,-500.0,0.00013197,2]
[394421135,1763556638543,-500.0,0.00013197,2]
[394421137,1763556638553,-500.0,0.00013197,2]
[394421138,1763556638562,-500.0,0.00013197,2]
[394421140,1763556638571,-500.0,0.00013197,2]
[394421142,1763556638580,-500.0,0.00013197,2]
[394421144,1763556638590,-500.0,0.00013197,2]
[394421146,1763556638599,-500.0,0.00013197,2]
[394421148,1763556638609,-500.0,0.00013197,2]
[394421150,1763556638618,-500.0,0.00013197,2]
[394421152,1763556638628,-500.0,0.00013197,2]
[394421154,1763556638637,-500.0,0.00013197,2]
[394421156,1763556638646,-500.0,0.00013197,2]
[394421158,1763556638656,-500.0,0.00013197,2]
[394421160,1763556638665,-500.0,0.00013197,2]
[394421162,1763556638677,-500.0,0.00013197,2]
[394421164,1763556638686,-500.0,0.00013197,2]
[394421166,1763556638696,-500.0,0.00013197,2]
[394421168,1763556638705,-500.0,0.00013197,2]
[394421170,1763556638714,-500.0,0.00013197,2]
[394421172,1763556638723,-292.21095269,0.00013197,2]
[394421174,1763556638733,-500.0,0.00013197,2]
[394421176,1763556638742,-500.0,0.00013197,2]
[394421178,1763556638750,-500.0,0.00013197,2]
[394421180,1763556638760,-500.0,0.00013197,2]
[394421182,1763556638769,-500.0,0.00013197,2]
[394421184,1763556638779,-500.0,0.00013197,2]
[394421186,1763556638788,-500.0,0.00013197,2]
[394421188,1763556638797,-500.0,0.00013197,2]
[394421190,1763556638807,-50000.0,0.00013198,2]
[394421192,1763556638816,-151.0,0.000132,2]
[394421194,1763556638825,-500.0,0.0001322,2]
[394421195,1763556638834,-1959.0,0.0001322,2]
[394421197,1763556638844,-500.0,0.0001322,2]
[394421199,1763556638853,-155.39006501,0.00013221,2]
[394421201,1763556638862,-157.8498372,0.00013221,2]
[394421212,1763556638962,-151.0,0.00013221,2]
[394421215,1763556638982,-500.0,0.00013221,2]
[394421217,1763556638995,-500.0,0.00013221,2]
[394421219,1763556639006,-151.0,0.00013221,2]
[394421221,1763556639016,-500.0,0.00013221,2]
[394421223,1763556639026,-261.865298,0.00013222,2]
[394421225,1763556639038,-261.865298,0.00013222,2]
[394421227,1763556639048,-261.865298,0.00013222,2]
[394421229,1763556639058,-261.865298,0.00013222,2]
[394421231,1763556639069,-261.865298,0.00013222,2]
[394421233,1763556639079,-261.865298,0.00013222,2]
[394421235,1763556639089,-261.865298,0.00013222,2]
[394421237,1763556639098,-261.865298,0.00013222,2]
[394421239,1763556639108,-261.865298,0.00013222,2]
[394421241,1763556639118,-261.865298,0.00013222,2]
[394421243,1763556639126,-261.865298,0.00013222,2]
[394421245,1763556639136,-261.865298,0.00013222,2]
[394421247,1763556639145,-500.0,0.00013224,2]
[394421249,1763556639155,-500.0,0.00013247,2]
[394421251,1763556639164,-1959.0,0.00013247,2]
[394421253,1763556639177,-500.0,0.00013247,2]
[394421255,1763556639187,-205.52159326,0.00013248,2]
[394421257,1763556639197,-500.0,0.00013248,2]
[394421260,1763556639206,-500.0,0.00013248,2]
[394421261,1763556639216,-254.3822629,0.00013248,2]
[394421263,1763556639225,-500.0,0.00013248,2]
[394421265,1763556639235,-500.0,0.00013275,2]
[394421267,1763556639244,-1959.0,0.00013275,2]
[394421269,1763556639253,-500.0,0.00013275,2]
[394421271,1763556639263,-500.0,0.00013276,2]
[394421273,1763556639272,-500.0,0.00013276,2]
[394421275,1763556639282,-254.08719922,0.00013276,2]
[394421277,1763556639291,-500.0,0.00013302,2]
[394421279,1763556639300,-1959.0,0.00013302,2]
[394421281,1763556639309,-500.0,0.00013302,2]
[394421283,1763556639318,-500.0,0.00013303,2]
[394421285,1763556639327,-500.0,0.00013303,2]
[394421287,1763556639336,-500.0,0.0001333,2]
[394421289,1763556639345,-1959.0,0.0001333,2]
[394421291,1763556639362,-500.0,0.0001333,2]
[394421293,1763556639371,-500.0,0.00013331,2]
[394421295,1763556639380,-500.0,0.00013331,2]
[394421297,1763556639389,-638.0,0.00013357,2]
[394421299,1763556639398,-1959.0,0.00013357,2]
[394421301,1763556639408,-500.0,0.00013357,2]
[394421303,1763556639417,-500.0,0.00013358,2]
[394421305,1763556639426,-500.0,0.00013358,2]
[394421307,1763556639435,-1959.0,0.00013384,2]
[394421309,1763556639445,-500.0,0.00013384,2]
[394421311,1763556639455,-441.68803233,0.00013385,2]
[394421313,1763556639464,-461.50704847,0.00013389,2]
[394421315,1763556639474,-830.71268725,0.00013389,2]
[394421317,1763556639483,-151.0,0.000134,2]
[394421319,1763556639492,-1959.0,0.00013412,2]
[394421321,1763556639501,-500.0,0.00013412,2]
[394421323,1763556639511,-1959.0,0.00013439,2]
[394421325,1763556639521,-500.0,0.00013439,2]
[394421327,1763556639530,-1959.0,0.00013467,2]
[394421329,1763556639539,-513.0,0.00013467,2]
[394421331,1763556639548,-1959.0,0.00013494,2]
[394421333,1763556639557,-500.0,0.00013498,2]
[394421335,1763556639566,-1959.0,0.00013521,2]
[394421337,1763556639576,-1959.0,0.00013549,2]
[394421339,1763556639585,-1959.0,0.00013576,2]
[394421341,1763556639595,-151.0,0.000136,2]
[394421343,1763556639604,-151.0,0.000136,2]
[394421345,1763556639613,-1959.0,0.00013604,2]
[394421346,1763556639621,-1959.0,0.00013631,2]
[394421348,1763556639631,-1959.0,0.00013658,2]
[394421350,1763556639640,-1959.0,0.00013686,2]
[394421352,1763556639649,-530.23893886,0.00013698,2]
[394421354,1763556639658,-500.0,0.00013698,2]
[394421356,1763556639667,-500.0,0.00013698,2]
[394421358,1763556639676,-524.15073761,0.00013698,2]
[394421360,1763556639685,-261.865298,0.00013698,2]
[394421362,1763556639694,-261.865298,0.00013698,2]
[394421364,1763556639703,-261.865298,0.00013698,2]
[394421366,1763556639713,-261.865298,0.00013698,2]
[394421368,1763556639722,-500.0,0.00013698,2]
[394421370,1763556639732,-532.66965828,0.00013698,2]
[394421372,1763556639741,-500.0,0.00013698,2]
[394421374,1763556639750,-500.0,0.00013698,2]
[394421376,1763556639759,-500.0,0.00013698,2]
[394421378,1763556639767,-500.0,0.00013698,2]
[394421380,1763556639776,-500.0,0.00013698,2]
[394421382,1763556639785,-500.0,0.00013698,2]
[394421384,1763556639794,-500.0,0.00013698,2]
[394421386,1763556639803,-500.0,0.00013698,2]
[394421388,1763556639812,-500.0,0.00013698,2]
[394421390,1763556639822,-500.0,0.00013698,2]
[394421392,1763556639832,-500.0,0.00013698,2]
[394421394,1763556639841,-500.0,0.00013698,2]
[394421396,1763556639850,-500.0,0.00013698,2]
[394421398,1763556639859,-500.0,0.00013698,2]
[394421400,1763556639868,-463.26416661,0.00013698,2]
[394421402,1763556639877,-500.0,0.00013698,2]